{"text_format":"1","workbook":"xlsx","n_sheets":1,"sheets":["Price Bid"],"not_rendered":{"charts":0,"images":1,"macros":1,"external_links":0,"defined_names":2,"comments":0,"pivot_tables":0},"unopened":[],"bounds":{"document_bytes":16777216,"sheet_cells":100000,"rows_first":2000,"rows_last":500,"rows_between":2000,"halvings":0,"cell_chars":16384,"cell_head_chars":4096},"cells_cut":0,"cells_raw":0,"read":"whole","date_system":"1900"}

{"sheet":"Price Bid","index":0,"n_rows":41,"n_cols":7,"rows_kept":41,"cut":false,"hidden":false,"merged":[[35,1,35,6],[36,1,36,6],[37,1,37,6],[38,1,38,6],[34,2,34,6],[33,1,33,5],[0,0,0,6],[1,0,1,6],[2,0,2,6],[3,0,3,6],[4,0,4,6]]}
["    BHARAT HEAVY ELECTRICAL LIMITED , JHANSI              "]
["TOWNSHIP CIVIL DEPARTMENT"]
["PRICE BID (JS 146)"]
["Name of work: Various Misc. Horticulture activities in Township."]
["Tender Enq No-TCX/TW/23/10"]
["Sl. No.","Description of Work","Unit ","Quantity ","Itemwise % Allocation","Rate (Rs.)","Amount (Rs.)"]
[1,"Ykkuksa dh flpkbZ ¼ सिचाई के लिये पाइप पानी इत्यादि भेल }kjk  मुफ्त उपलब्ध कराया जायेगा।½","Ikzfr 100 oxZ ehVj ",1800,3.7919262653921898E-2,{"$f":"+ROUND(G7/D7,2)","v":0},{"$f":"+ROUND(G34*E7,2)","v":0}]
[2,"gSt dh flapkbZ ¼ सिचाई के लिये पाइप पानी इत्यादि भेल }kjk  मुफ्त उपलब्ध कराया जायेगा।½","Ikzfr ehVj ",15000,6.1983812202413321E-2,{"$f":"+ROUND(G8/D8,2)","v":0},{"$f":"+ROUND(G34*E8,2)","v":0}]
[3,"D;kfj;ksa dh flapkbZ ¼सिचाई के लिये पाइप पानी इत्यादि भेल }kjk मुफ्त उपलब्ध कराया जायेगा।½","Ikzfr oxZ ehVj ",14000,5.7851558055585769E-2,0,{"$f":"+ROUND(G34*E9,2)","v":0}]
[4,"Xkeyksa dh flapkbZ ¼ सिचाई के लिये पाइप पानी इत्यादि भेल }kjk मुफ्त उपलब्ध कराया जायेगा।½","Ikzfr xeyk ",5100,6.6115344492905376E-2,0,{"$f":"+ROUND(G34*E10,2)","v":0}]
[5,">kM+h ;qDr ikS/ksa dh flapkbZ tSls cksxu fcfy;k eksjia[kh dusj  ¼सिचाई के लिये पाइप पानी इत्यादि भेल  }kjk  मुफ्त उपलब्ध कराया जायेगा।½","Ikzfr ikS/kk ",2000,3.2409855968528106E-2,0,{"$f":"+ROUND(G34*E11,2)","v":0}]
[6,"Ykkuks dh dfVax एवम कटी घास / कूडा को डस्टबिन में डालना  ¼कटिंग के लिये टूल्स  इत्यादि भेल  }kjk मुफ्त उपलब्ध कराया जायेगा।","Ikzfr 100 oxZ ehVj ",1000,1.6204927984264053E-2,0,{"$f":"+ROUND(G34*E12,2)","v":0}]
[7,"gSt dfaVax एवम कटी घास / कूडा को डस्टबिन में डालना ¼कटिंग के लिये टूल्स  इत्यादि भेल }kjk  मुफ्त उपलब्ध कराया जायेगा।½","Ikzfr ehVj ",15000,6.1983812202413321E-2,0,{"$f":"+ROUND(G34*E13,2)","v":0}]
[8,">kM+h ;qDr ikS/ksa tSls cksxu fcfy;k eksjia[kh dusj एवं अशोक के शोभाकार पौधों २मी  ऊचाई तक कटिंग एवम कटी पत्तों  कूडा को डस्टबिन में डालना ¼कटिंग के लिये टूल्स  इत्यादि भेल }kjk  मुफ्त उपलब्ध कराया जायेगा।½","Ikzfr ikS/kk ",1500,6.8060100135562379E-2,0,{"$f":"+ROUND(G34*E14,2)","v":0}]
[9,"Ykkuksa dh [kjirokj jfgr djuk ¼ टूल्स  इत्यादि भेल }kjk  मुफ्त उपलब्ध कराया जायेगा।½","Ikzfr 100 oxZ ehVj ",250,5.0640088805852947E-2,0,{"$f":"+ROUND(G34*E15,2)","v":0}]
[10,"ekSleh Qwyksa dh D;kfj;ksa dh 30 ls0eh0 [kqnkbZ djuk lery djuk [kjirokj fudkyuk xkscj dh [kkn feykdj lery djukA ¼खुदाई के लिये टूल्स खाद इत्यादि भेल }kjk  मुफ्त उपलब्ध कराया जायेगा।½","Ikzfr oxZ ehVj ",1500,5.3475739624518071E-2,0,{"$f":"+ROUND(G34*E16,2)","v":0}]
[11,"ekSleh Qwyksa ds chtksa dks cksuk o ikS/k rS;kj gksus ij D;kfj;ksa esa jksfir djukA ¼ टूल्स बीज इत्यादि भेल }kjk  मुफ्त उपलब्ध कराया जायेगा।½","Ikzfr oxZ ehVj ",1500,5.3475739624518071E-2,0,{"$f":"+ROUND(G34*E17,2)","v":0}]
[12,"ekSleh Qwyksa ds ikS/kksa dh fudkbZ xqM+kbZ djuk o jklk;fud [kkn Mkyuk  ¼ टूल्स खाद इत्यादि भेल }kjk  मुफ्त उपलब्ध कराया जायेगा।½","Ikzfr oxZ ehVj ",1500,5.3475739624518071E-2,0,{"$f":"+ROUND(G34*E18,2)","v":0}]
[13,"Xkqykc  dh D;kfj;ksa dh 30 ls0 eh0 [kqnkbZ djuk [kjirckj fudkyuk xkscj dh [kkn jklk;fud [kkn uhe [kyh jkst feDl o QaxhlkbM isLVh lkbM  feykdj  leery djuk A  खुदाई के लिये टूल्स खाद इत्यादि भेल }kjk  मुफ्त उपलब्ध कराया जायेगा।½","Ikzfr oxZ ehVj",1000,1.9445316182770231E-3,0,{"$f":"+ROUND(G34*E19,2)","v":0}]
[14,"Xkeyksa esa ls iqjkuh feV~Vh fudkydj cjkcj ek=k esa xkscj dh [kkn o dkyh feV~Vh rFkk uhe [kyh o QaxhlkbM  isLVh lkbM  feykdj Hkjuk rFkk VwVs gq;s xeys ds ikS/kksa dks cnyukA टूल्स खाद इत्यादि भेल }kjk  मुफ्त उपलब्ध कराया जायेगा।½","Ikzfr xeyk",800,1.2963544121846822E-3,0,{"$f":"+ROUND(G34*E20,2)","v":0}]
[15,"Xkeyks ij jax djuk a ¼रंग ब्रश इत्यादि भेल }kjk  मुफ्त उपलब्ध कराया जायेगा।½","Ikzfr xeyk",1000,1.6204927984264053E-2,0,{"$f":"+ROUND(G34*E21,2)","v":0}]
[16,"foHkkxh; bapktZ }kjk crk;s x;s Nk;knkj o Qynkj o`{kksa dVkbZ NVkbZ djukA ¼टूल्स सीढी इत्यादि भेल }kjk  मुफ्त उपलब्ध कराया जायेगा।½","Ikzfr o`{k",100,4.6994092021583542E-3,0,{"$f":"+ROUND(G34*E22,2)","v":0}]
[17,"m|;ku {ks= dh lQkbZ djuk dwM+k bdB~Bk djds MLV fcu rd Qsaduk","Ikzfr 100 oxZ ehVj",100,8.1024142089364745E-3,0,{"$f":"+ROUND(G34*E23,2)","v":0}]
[18,"dk;kZy;ksa esa Qwynku Hkjuk ","Ikzfr Qwynku",300,2.1390370524600556E-2,0,{"$f":"+ROUND(G34*E24,2)","v":0}]
[19,"Hkwfe ls vf/kdre 6 ls 10 ls0 eh0  Åij ls taxyh ?kkl dkVuk bdB~Bk djuk o crk;s LFkku ij VSªDVj Vªkyh ls Qsaduk ¼टूल्स  इत्यादि भेल }kjk  मुफ्त उपलब्ध कराया जायेगा।½","Ikzfr 100 oxZ ehVj",50,2.8358375056484328E-3,0,{"$f":"+ROUND(G34*E25,2)","v":0}]
[20,"पुष्प गुछ्छा बनाना (बुके¼टूल्स सामग्री  इत्यादि भेल द्वारा  मुफ्त उपलब्ध कराया जायेगा।½","Ikzfr गुछ्छा",200,5.8337442044177268E-3,0,{"$f":"+ROUND(G34*E26,2)","v":0}]
[21,"फ़ूलों की माला  बनाना ¼टूल्स सामग्री  इत्यादि भेल द्वारा  मुफ्त उपलब्ध कराया जायेगा।½","Ikzfr माला",50,5.266564257489152E-3,0,{"$f":"+ROUND(G34*E27,2)","v":0}]
[22,"पेडों पर नम्बर पट्टी ¼कील से) लगाना  (टूल्स सामग्री  इत्यादि भेल द्वारा  मुफ्त उपलब्ध कराया जायेगा।½","Ikzfr o`{k",450,1.0209015020334358E-2,0,{"$f":"+ROUND(G34*E28,2)","v":0}]
[23,"o`{kkjksi.k gsrq x<s` djuk","Ikzfr x<s`",830,6.7250037934172738E-2,0,{"$f":"+ROUND(G34*E29,2)","v":0}]
[24,"ikS/kksa ds Fkkeys cukuk","Ikzfr o`{k",500,9.3177713619573888E-2,0,{"$f":"+ROUND(G34*E30,2)","v":0}]
[25,"isM+ks ij xs# ,oa pquk ls iqrkbZ","Ikzfr o`{k",450,7.3650927237282143E-2,0,{"$f":"+ROUND(G34*E31,2)","v":0}]
[26,"D;kfj;ksa ds pkjksrjQ bZV yxkuk","eh0",100,1.6204828417872949E-2,0,{"$f":"+ROUND(G34*E32,2)","v":0}]
[27,"baVksa dh pquk ls iqrkbZ","eh0",200,5.8337342477786165E-2,0,{"$f":"+ROUND(G34*E33,2)","v":0}]
[null,"Total Amount (Rs.)"]
[null,"IN WORDS",{"$f":"rup(G34)","v":0}]
[null,"1. GST extra as applicable"]
[null,"2. Bidder has to quote in above unlocked cell (G-34) only. Item rate shall be calculated automatically. Calculated item rates upto four decimal points may be adjusted w.r.t. gross total amount and it shall be the itemwise final rate for  execution of contract and all other purposes."]
[null,"3. Quoted gross total amount should be considered only if quoted in this excel sheet and print out of this should only be considered for evaluation.  If Price is quoted in any other format other than the Excel Sheet enclosed to the NIT , the offer of the bidder  will be rejected"]
[null,"4. The quantity of items in the BOQ are only tentative and approximate and are liable for variation up to any extent provided the total value of the Contract does not vary by more than 30% (Thirty percent)."]
[]
[null,null,null,"(Signature and Seal of Contractor)"]